[Event "Danish Skakligaen 2024-25"]
[Site "Denmark"]
[Date "2024.11.02"]
[Round "1.5"]
[White "Percivaldi, Martin"]
[Black "Christensen, Benjamin"]
[Result "1-0"]
[ECO "A05"]
[WhiteElo "2387"]
[BlackElo "2057"]
[Annotator "RC"]
[PlyCount "47"]
[EventDate "2024.11.02"]
[EventType "team-tourn"]
[EventCountry "DEN"]
[SourceTitle "playchess.com"]
[Source "ChessBase"]
[SourceQuality "1"]
[TimeControl "40/5400+30:1800+30"]

1. Nf3 {[%emt 0:00:05]} Nf6 {[%emt 0:00:06]} 2. g3 {[%emt 0:00:29]} c5 {[%emt 0:00:31]} 3. Bg2 {[%emt 0:01:04]} Nc6 {[%emt 0:00:48]} 4. c4 {[%emt 0:01:24]} e5 {[%emt 0:01:06]} 5. Nc3 {[%emt 0:02:42]} d6 {[%emt 0:03:24]} 6. d3 {[%emt 0:02:52]} g6 {[%emt 0:02:39]} 7. O-O {[%emt 0:04:22]} h5 {[%emt 0:03:41]} 8. Bg5 {[%emt 0:01:23]} Be7 {[%emt 0:01:23]} 9. a3 {[%emt 0:11:32]} Be6 {[%emt 0:05:52]} 10. b4 {[%emt 0:04:06]} Qd7 {[%emt 0:06:22]} 11. Rb1 {[%emt 0:05:16]} Nh7 {[%emt 0:10:19]} 12. Bxe7 {[%emt 0:08:12]} Kxe7 {[%emt 0:00:10]} 13. bxc5 {[%emt 0:03:03]} Rag8 {[%emt 0:06:44]} 14. cxd6+ {[%emt 0:01:12]} Kf8 {[%emt 0:00:05]} 15. Ne4 {[%emt 0:04:48]} g5 {[%emt 0:04:45]} 16. Nc5 {[%emt 0:01:08]} Qxd6 {[%emt 0:00:24]} 17. Nxe6+ {[%emt 0:00:10]} Qxe6 {[%emt 0:00:37]} 18. Rxb7 {[%emt 0:00:39]} h4 {[%emt 0:03:58]} 19. d4 {[%emt 0:03:21]} Qc8 {[%emt 0:00:56]} 20. Qb1 {[%emt 0:03:42]} h3 {[%emt 0:07:19]} 21. Bh1 {[%emt 0:00:55]} e4 {[%emt 0:00:46]} 22. Ne5 {[%emt 0:01:31]} Nxd4 {[%emt 0:00:09]} 23. Rxf7+ {[%emt 0:01:24]} Ke8 {[%emt 0:01:24]} 24. Qxe4 {[%emt 0:00:35]} 1-0

[Event "Danish Skakligaen 2024-25"]
[Site "Denmark"]
[Date "2024.11.02"]
[Round "1.5"]
[White "Pedersen, Nicolai Vesterbaek"]
[Black "Jorgensen, Brian"]
[Result "1-0"]
[ECO "D34"]
[WhiteElo "2344"]
[BlackElo "2258"]
[Annotator "RC"]
[PlyCount "59"]
[EventDate "2024.11.02"]
[EventType "team-tourn"]
[EventCountry "DEN"]
[SourceTitle "playchess.com"]
[Source "ChessBase"]
[SourceQuality "1"]
[TimeControl "40/5400+30:1800+30"]

1. d4 {[%emt 0:00:04]} d5 {[%emt 0:00:09]} 2. c4 {[%emt 0:00:09]} e6 {[%emt 0:00:06]} 3. Nc3 {[%emt 0:00:13]} c5 {[%emt 0:00:08]} 4. cxd5 {[%emt 0:00:22]} exd5 {[%emt 0:00:17]} 5. Nf3 {[%emt 0:00:27]} Nf6 {[%emt 0:00:24]} 6. g3 {[%emt 0:00:56]} Nc6 {[%emt 0:00:45]} 7. Bg2 {[%emt 0:00:37]} Be7 {[%emt 0:00:30]} 8. O-O {[%emt 0:00:29]} O-O {[%emt 0:00:08]} 9. dxc5 {[%emt 0:00:38]} Bxc5 {[%emt 0:00:11]} 10. Qc2 {[%emt 0:00:40]} Qe7 {[%emt 0:20:00]} 11. Bg5 {[%emt 0:08:46]} Be6 {[%emt 0:01:18]} 12. e4 {[%emt 0:03:59]} Nb4 {[%emt 0:05:33]} 13. Qe2 {[%emt 0:06:45]} d4 {[%emt 0:04:31]} 14. Na4 {[%emt 0:01:33]} Bd7 {[%emt 0:14:16]} 15. Bxf6 {[%emt 0:03:49]} gxf6 {[%emt 0:00:51]} 16. Nxc5 {[%emt 0:01:41]} Qxc5 {[%emt 0:00:09]} 17. Nxd4 {[%emt 0:03:32]} Nc6 {[%emt 0:07:14]} 18. Nb3 {[%emt 0:04:50]} Qe7 {[%emt 0:00:48]} 19. Rac1 {[%emt 0:05:15]} Rad8 {[%emt 0:00:53]} 20. Nc5 {[%emt 0:11:54]} Bc8 {[%emt 0:00:19]} 21. Qe3 {[%emt 0:00:34]} Rd6 {[%emt 0:02:23]} 22. Rfd1 {[%emt 0:05:15]} Rfd8 {[%emt 0:00:37]} 23. Rxd6 {[%emt 0:00:17]} Qxd6 {[%emt 0:00:36]} 24. Bf3 {[%emt 0:07:53]} Qe5 {[%emt 0:12:49]} 25. Nd3 {[%emt 0:06:21]} Qb5 {[%emt 0:06:38]} 26. Be2 {[%emt 0:00:15]} Qa4 {[%emt 0:05:52]} 27. a3 {[%emt 0:02:53]} Nd4 {[%emt 0:03:35]} 28. Nf4 {[%emt 0:01:09]} Nxe2+ {[%emt 0:06:34]} 29. Qxe2 {[%emt 0:00:11]} Re8 {[%emt 0:00:59]} 30. Rxc8 {[%emt 0:00:40]} 1-0

[Event "Danish Skakligaen 2024-25"]
[Site "Denmark"]
[Date "2024.11.02"]
[Round "1.5"]
[White "Rostgaard, Tobias Valentin"]
[Black "Hoi, Carsten"]
[Result "1/2-1/2"]
[ECO "A48"]
[WhiteElo "2329"]
[BlackElo "2301"]
[Annotator "RC"]
[PlyCount "89"]
[EventDate "2024.11.02"]
[EventType "team-tourn"]
[EventCountry "DEN"]
[SourceTitle "playchess.com"]
[Source "ChessBase"]
[SourceQuality "1"]
[TimeControl "40/5400+30:1800+30"]

1. Nf3 {[%emt 0:00:07]} Nf6 {[%emt 0:00:24]} 2. d4 {[%emt 0:00:57]} g6 {[%emt 0:00:35]} 3. Bf4 {[%emt 0:00:24]} Bg7 {[%emt 0:00:19]} 4. Nbd2 {[%emt 0:00:43]} O-O {[%emt 0:00:40]} 5. e4 {[%emt 0:00:44]} d6 {[%emt 0:00:23]} 6. Bd3 {[%emt 0:00:24]} Nc6 {[%emt 0:01:47]} 7. d5 {[%emt 0:06:49]} e5 {[%emt 0:08:46]} 8. dxc6 {[%emt 0:06:13]} exf4 {[%emt 0:00:37]} 9. cxb7 {[%emt 0:00:05]} Bxb7 {[%emt 0:00:11]} 10. O-O {[%emt 0:00:31]} Nd7 {[%emt 0:04:51]} 11. c3 {[%emt 0:06:14]} Nc5 {[%emt 0:03:08]} 12. Bc2 {[%emt 0:00:17]} Rb8 {[%emt 0:05:13]} 13. Re1 {[%emt 0:01:49]} Re8 {[%emt 0:08:35]} 14. Nd4 {[%emt 0:02:17]} Qg5 {[%emt 0:07:19]} 15. b4 {[%emt 0:03:57]} Ne6 {[%emt 0:10:44]} 16. Ba4 {[%emt 0:07:32]} Nxd4 {[%emt 0:04:53]} 17. Bxe8 {[%emt 0:02:40]} f3 {[%emt 0:03:52]} 18. Bxf7+ {[%emt 0:02:36]} Kxf7 {[%emt 0:00:36]} 19. Nxf3 {[%emt 0:00:13]} Nxf3+ 20. Qxf3+ {[%emt 0:00:05]} Kg8 {[%emt 0:01:15]} 21. Qd3 {[%emt 0:02:21]} Kh8 {[%emt 0:06:17]} 22. Rad1 {[%emt 0:01:48]} Re8 {[%emt 0:05:50]} 23. Qc4 {[%emt 0:03:56]} Qe7 {[%emt 0:01:26]} 24. Re3 {[%emt 0:02:26]} a6 {[%emt 0:02:45]} 25. Rde1 {[%emt 0:01:42]} Be5 {[%emt 0:01:37]} 26. g3 {[%emt 0:10:56]} g5 {[%emt 0:02:09]} 27. Rf3 {[%emt 0:00:21]} Kg7 {[%emt 0:00:39]} 28. b5 {[%emt 0:10:22]} axb5 {[%emt 0:00:59]} 29. Qxb5 {[%emt 0:00:13]} Bc8 {[%emt 0:00:42]} 30. Kg2 {[%emt 0:04:30]} h5 {[%emt 0:03:27]} 31. a4 {[%emt 0:01:45]} Bg4 {[%emt 0:03:06]} 32. Rfe3 {[%emt 0:00:51]} h4 {[%emt 0:00:55]} 33. a5 {[%emt 0:07:44]} Rf8 {[%emt 0:00:41]} 34. Qd3 {[%emt 0:04:43]} Qf6 {[%emt 0:06:34]} 35. f3 {[%emt 0:03:03]} hxg3 {[%emt 0:00:46]} 36. hxg3 {[%emt 0:00:41]} Bxg3 {[%emt 0:02:12]} 37. Kxg3 {[%emt 0:00:49]} Qf4+ {[%emt 0:01:23]} 38. Kg2 {[%emt 0:00:05]} Bh3+ {[%emt 0:01:03]} 39. Kh1 {[%emt 0:02:51]} Rh8 {[%emt 0:01:05]} 40. Qd4+ {[%emt 0:00:48]} Kg8 {[%emt 0:00:43]} 41. Qxh8+ {[%emt 0:05:02]} Kxh8 {[%emt 0:03:33]} 42. a6 {[%emt 0:02:23]} Bd7 {[%emt 0:10:08]} 43. Kg2 {[%emt 0:01:09]} Bc6 {[%emt 0:02:08]} 44. a7 {[%emt 0:01:47]} Qe5 {[%emt 0:04:52]} 45. Ra1 {[%emt 0:00:43]} 1/2-1/2

[Event "Danish Skakligaen 2024-25"]
[Site "Denmark"]
[Date "2024.11.02"]
[Round "1.5"]
[White "Hove, Esben Kjems"]
[Black "Easwaralingam, Adesh"]
[Result "1-0"]
[ECO "A45"]
[WhiteElo "2283"]
[BlackElo "2202"]
[Annotator "RC"]
[PlyCount "93"]
[EventDate "2024.11.02"]
[EventType "team-tourn"]
[EventCountry "DEN"]
[SourceTitle "playchess.com"]
[Source "ChessBase"]
[SourceQuality "1"]
[TimeControl "40/5400+30:1800+30"]

1. d4 {[%emt 0:00:04]} Nf6 {[%emt 0:00:07]} 2. Bf4 {[%emt 0:00:14]} d5 {[%emt 0:00:10]} 3. e3 {[%emt 0:00:09]} c5 {[%emt 0:00:43]} 4. Nf3 {[%emt 0:00:28]} Nc6 {[%emt 0:00:10]} 5. Nbd2 {[%emt 0:00:17]} e6 {[%emt 0:00:57]} 6. c3 {[%emt 0:00:23]} cxd4 {[%emt 0:00:54]} 7. exd4 {[%emt 0:00:09]} Nh5 {[%emt 0:00:59]} 8. Be3 {[%emt 0:02:19]} Bd6 {[%emt 0:01:07]} 9. Ne5 {[%emt 0:00:56]} g6 {[%emt 0:01:58]} 10. Ndf3 {[%emt 0:04:52]} f6 {[%emt 0:03:30]} 11. Nxc6 {[%emt 0:02:41]} bxc6 {[%emt 0:00:19]} 12. Be2 {[%emt 0:01:59]} Nf4 {[%emt 0:02:27]} 13. Bxf4 {[%emt 0:01:30]} Bxf4 {[%emt 0:00:16]} 14. O-O {[%emt 0:00:19]} Qa5 {[%emt 0:04:54]} 15. b4 {[%emt 0:01:23]} Qc7 {[%emt 0:03:14]} 16. c4 {[%emt 0:01:19]} O-O {[%emt 0:03:11]} 17. g3 {[%emt 0:05:22]} Bh6 {[%emt 0:02:50]} 18. Re1 {[%emt 0:02:31]} Re8 {[%emt 0:17:43]} 19. Qc2 {[%emt 0:10:56]} Qb6 {[%emt 0:06:07]} 20. Bd3 {[%emt 0:04:31]} Bd7 {[%emt 0:01:59]} 21. Rab1 {[%emt 0:18:02]} a5 {[%emt 0:03:41]} 22. c5 {[%emt 0:05:16]} Qc7 {[%emt 0:00:59]} 23. b5 {[%emt 0:00:58]} e5 {[%emt 0:09:10]} 24. b6 {[%emt 0:03:31]} Qb8 {[%emt 0:03:48]} 25. dxe5 {[%emt 0:09:57]} fxe5 {[%emt 0:01:00]} 26. Bxg6 {[%emt 0:06:04]} hxg6 {[%emt 0:03:52]} 27. Qxg6+ {[%emt 0:00:16]} Bg7 {[%emt 0:00:05]} 28. b7 {[%emt 0:02:07]} Ra7 {[%emt 0:00:42]} 29. Rxe5 {[%emt 0:00:13]} Rxe5 {[%emt 0:03:47]} 30. Nxe5 {[%emt 0:00:15]} Rxb7 {[%emt 0:01:00]} 31. Rxb7 {[%emt 0:01:25]} Qxb7 {[%emt 0:00:09]} 32. Qf7+ {[%emt 0:00:10]} Kh8 {[%emt 0:00:05]} 33. Nxd7 {[%emt 0:02:13]} Qb1+ {[%emt 0:01:50]} 34. Kg2 {[%emt 0:00:07]} Qe4+ {[%emt 0:00:19]} 35. Qf3 {[%emt 0:01:57]} Qe7 {[%emt 0:00:16]} 36. Qh5+ {[%emt 0:01:22]} Kg8 {[%emt 0:00:10]} 37. Qf5 {[%emt 0:01:09]} Bd4 {[%emt 0:02:42]} 38. Qg4+ {[%emt 0:01:41]} Bg7 {[%emt 0:00:06]} 39. h4 {[%emt 0:01:23]} d4 {[%emt 0:01:47]} 40. Qf5 {[%emt 0:01:16]} Kh8 {[%emt 0:00:49]} 41. Kf1 {[%emt 0:31:01]} Kg8 {[%emt 0:31:40]} 42. h5 {[%emt 0:01:57]} Qf7 {[%emt 0:01:51]} 43. Qxf7+ {[%emt 0:00:27]} Kxf7 {[%emt 0:00:06]} 44. Nb8 {[%emt 0:00:13]} Ke6 {[%emt 0:00:04]} 45. Nxc6 {[%emt 0:00:15]} Kd5 {[%emt 0:00:05]} 46. Nxa5 {[%emt 0:00:12]} Kxc5 {[%emt 0:00:09]} 47. Ke2 {[%emt 0:00:59]} 1-0

[Event "Danish Skakligaen 2024-25"]
[Site "Denmark"]
[Date "2024.11.02"]
[Round "1.5"]
[White "Laursen, Niels Norskov"]
[Black "Baekgaard, Martin"]
[Result "1-0"]
[ECO "C44"]
[WhiteElo "2183"]
[BlackElo "2263"]
[Annotator "RC"]
[PlyCount "119"]
[EventDate "2024.11.02"]
[EventType "team-tourn"]
[EventCountry "DEN"]
[SourceTitle "playchess.com"]
[Source "ChessBase"]
[SourceQuality "1"]
[TimeControl "40/5400+30:1800+30"]

1. e4 {[%emt 0:00:03]} e5 {[%emt 0:00:13]} 2. Nf3 {[%emt 0:00:11]} Nc6 {[%emt 0:00:07]} 3. d4 {[%emt 0:00:13]} exd4 {[%emt 0:00:06]} 4. Nxd4 {[%emt 0:00:12]} Bb4+ {[%emt 0:00:27]} 5. c3 {[%emt 0:00:35]} Bc5 {[%emt 0:00:56]} 6. Be3 {[%emt 0:00:43]} Bb6 {[%emt 0:00:10]} 7. Nf5 {[%emt 0:01:21]} g6 {[%emt 0:04:38]} 8. Bxb6 {[%emt 0:01:08]} axb6 {[%emt 0:00:55]} 9. Ne3 {[%emt 0:00:47]} Nf6 {[%emt 0:06:07]} 10. f3 {[%emt 0:03:18]} Qe7 {[%emt 0:12:29]} 11. Be2 {[%emt 0:05:48]} O-O {[%emt 0:09:13]} 12. Qd2 {[%emt 0:11:57]} Re8 {[%emt 0:17:11]} 13. Na3 {[%emt 0:15:59]} Ra5 {[%emt 0:05:00]} 14. Nac4 {[%emt 0:13:46]} Rh5 {[%emt 0:05:37]} 15. g4 {[%emt 0:09:18]} Rh3 {[%emt 0:01:23]} 16. O-O-O {[%emt 0:10:52]} b5 {[%emt 0:13:40]} 17. g5 {[%emt 0:03:16]} bxc4 {[%emt 0:02:53]} 18. gxf6 {[%emt 0:00:10]} Qxf6 {[%emt 0:00:41]} 19. Nd5 {[%emt 0:00:32]} Qd8 {[%emt 0:02:00]} 20. Qf4 {[%emt 0:01:00]} Re5 {[%emt 0:00:11]} 21. Bf1 {[%emt 0:02:46]} d6 {[%emt 0:02:04]} 22. Bxh3 {[%emt 0:01:51]} Bxh3 {[%emt 0:00:05]} 23. Rhg1 {[%emt 0:00:45]} Be6 {[%emt 0:06:42]} 24. h4 {[%emt 0:03:11]} h5 {[%emt 0:00:04]} 25. Kb1 {[%emt 0:02:58]} Kg7 {[%emt 0:01:00]} 26. Nb4 {[%emt 0:02:19]} Qe8 {[%emt 0:02:22]} 27. Nxc6 {[%emt 0:00:20]} Qxc6 {[%emt 0:00:05]} 28. Rg5 {[%emt 0:01:17]} Qc5 {[%emt 0:00:30]} 29. Rxe5 {[%emt 0:01:42]} dxe5 {[%emt 0:00:07]} 30. Qg5 {[%emt 0:00:44]} f6 {[%emt 0:01:27]} 31. Qd2 {[%emt 0:00:21]} Qe7 {[%emt 0:03:36]} 32. Qe3 {[%emt 0:00:42]} b6 {[%emt 0:00:16]} 33. Ka1 {[%emt 0:00:33]} g5 {[%emt 0:01:07]} 34. Qf2 {[%emt 0:01:50]} Kh6 {[%emt 0:01:32]} 35. a3 {[%emt 0:01:32]} Bd7 {[%emt 0:01:10]} 36. Qe3 {[%emt 0:01:37]} Ba4 {[%emt 0:00:18]} 37. Rd2 {[%emt 0:00:21]} Bd7 {[%emt 0:00:24]} 38. Qe2 {[%emt 0:00:44]} Be6 {[%emt 0:00:17]} 39. Qe3 {[%emt 0:00:25]} Bd7 {[%emt 0:00:14]} 40. Ka2 {[%emt 0:01:04]} Be6 {[%emt 0:01:43]} 41. Rg2 {[%emt 0:11:13]} Qd8 {[%emt 0:00:40]} 42. Rd2 {[%emt 0:03:04]} Qe7 {[%emt 0:00:08]} 43. Ka1 {[%emt 0:01:13]} Kg6 {[%emt 0:03:55]} 44. Rg2 {[%emt 0:00:41]} Kh6 {[%emt 0:00:07]} 45. Qd2 {[%emt 0:00:42]} Bf7 {[%emt 0:03:41]} 46. Rg1 {[%emt 0:00:56]} Be6 {[%emt 0:00:06]} 47. Qg2 {[%emt 0:00:44]} Qd8 {[%emt 0:01:16]} 48. Qg3 {[%emt 0:01:46]} g4 {[%emt 0:00:12]} 49. f4 {[%emt 0:03:35]} Qd3 {[%emt 0:00:33]} 50. Qf2 {[%emt 0:05:27]} Qxe4 {[%emt 0:10:59]} 51. fxe5 {[%emt 0:00:33]} Qxe5 {[%emt 0:00:06]} 52. Re1 {[%emt 0:00:54]} Qf5 {[%emt 0:00:09]} 53. Qg3 {[%emt 0:01:45]} Bd5 {[%emt 0:07:14]} 54. Qxc7 {[%emt 0:00:41]} b5 {[%emt 0:00:06]} 55. Re8 {[%emt 0:01:33]} Qf1+ {[%emt 0:01:11]} 56. Ka2 {[%emt 0:00:11]} Kg6 {[%emt 0:00:06]} 57. Rh8 {[%emt 0:02:49]} Bf7 {[%emt 0:00:32]} 58. Qc5 {[%emt 0:00:58]} f5 {[%emt 0:02:10]} 59. Qd6+ {[%emt 0:00:26]} Kg7 {[%emt 0:00:04]} 60. Qh6# {[%emt 0:01:33]} 1-0

[Event "Danish Skakligaen 2024-25"]
[Site "Denmark"]
[Date "2024.11.02"]
[Round "1.6"]
[White "Sobjerg, Erik"]
[Black "Simonsen, Carsten"]
[Result "1/2-1/2"]
[ECO "B95"]
[WhiteElo "2266"]
[BlackElo "2168"]
[Annotator "RC"]
[PlyCount "138"]
[EventDate "2024.11.02"]
[EventType "team-tourn"]
[EventCountry "DEN"]
[SourceTitle "playchess.com"]
[Source "ChessBase"]
[SourceQuality "1"]
[TimeControl "40/5400+30:1800+30"]

1. e4 {[%emt 0:00:12]} c5 {[%emt 0:00:39]} 2. Nf3 {[%emt 0:00:08]} d6 {[%emt 0:00:07]} 3. d4 {[%emt 0:00:07]} cxd4 {[%emt 0:00:13]} 4. Nxd4 {[%emt 0:00:03]} Nf6 {[%emt 0:00:10]} 5. Nc3 {[%emt 0:00:04]} a6 {[%emt 0:00:06]} 6. Bg5 {[%emt 0:06:06]} e6 {[%emt 0:00:08]} 7. Qf3 {[%emt 0:00:12]} Nbd7 {[%emt 0:09:28]} 8. Be2 {[%emt 0:06:34]} Qa5 {[%emt 0:07:56]} 9. Bd2 {[%emt 0:08:41]} Qc7 {[%emt 0:07:27]} 10. g4 {[%emt 0:05:30]} Ne5 {[%emt 0:04:58]} 11. Qh3 {[%emt 0:05:24]} Nc4 {[%emt 0:06:44]} 12. g5 {[%emt 0:17:29]} Nxd2 {[%emt 0:00:35]} 13. gxf6 {[%emt 0:03:03]} Nc4 {[%emt 0:01:00]} 14. O-O-O {[%emt 0:08:01]} gxf6 {[%emt 0:03:51]} 15. f4 {[%emt 0:03:29]} Nb6 {[%emt 0:07:55]} 16. f5 {[%emt 0:09:20]} e5 {[%emt 0:00:21]} 17. Nb3 {[%emt 0:03:58]} Bd7 {[%emt 0:01:19]} 18. Bh5 {[%emt 0:01:27]} a5 {[%emt 0:06:46]} 19. Rd3 {[%emt 0:03:48]} a4 {[%emt 0:00:45]} 20. Nd2 {[%emt 0:00:14]} Rc8 {[%emt 0:04:23]} 21. Kb1 {[%emt 0:01:47]} a3 {[%emt 0:03:00]} 22. b3 {[%emt 0:00:46]} Be7 {[%emt 0:12:16]} 23. Rc1 {[%emt 0:01:45]} Qc5 {[%emt 0:03:27]} 24. Qg3 {[%emt 0:01:42]} Rf8 {[%emt 0:02:13]} 25. Nf1 {[%emt 0:02:09]} Qb4 {[%emt 0:01:33]} 26. Qe1 {[%emt 0:01:27]} Rg8 {[%emt 0:01:59]} 27. Ne3 {[%emt 0:00:35]} Bc6 {[%emt 0:00:58]} 28. Bf3 {[%emt 0:04:13]} Qc5 {[%emt 0:03:01]} 29. Qh4 {[%emt 0:00:26]} Bb5 {[%emt 0:02:00]} 30. Nxb5 {[%emt 0:01:09]} Qxb5 {[%emt 0:00:03]} 31. Qxh7 {[%emt 0:00:33]} Rf8 {[%emt 0:00:18]} 32. Qh6 {[%emt 0:00:48]} Qb4 {[%emt 0:01:49]} 33. c3 {[%emt 0:01:44]} Qb5 {[%emt 0:00:34]} 34. Rcd1 {[%emt 0:00:49]} Na4 {[%emt 0:03:32]} 35. Nd5 {[%emt 0:00:46]} Nb2 {[%emt 0:00:49]} 36. c4 {[%emt 0:03:06]} Qc5 {[%emt 0:01:28]} 37. Qd2 {[%emt 0:00:39]} Nxd3 {[%emt 0:00:32]} 38. Qxd3 {[%emt 0:00:01]} Rg8 {[%emt 0:00:43]} 39. Be2 {[%emt 0:01:07]} Rg1 {[%emt 0:02:16]} 40. b4 {[%emt 0:00:35]} Rxd1+ {[%emt 0:01:20]} 41. Qxd1 {[%emt 0:07:45]} Qc6 {[%emt 0:07:00]} 42. Qg1 {[%emt 0:03:14]} Kd8 {[%emt 0:09:53]} 43. Qa7 {[%emt 0:01:51]} Qa6 {[%emt 0:00:59]} 44. Qe3 {[%emt 0:05:27]} Ra8 {[%emt 0:02:57]} 45. h4 {[%emt 0:01:07]} Qa7 {[%emt 0:01:12]} 46. Nb6 {[%emt 0:00:57]} Ke8 {[%emt 0:02:04]} 47. c5 {[%emt 0:02:11]} dxc5 {[%emt 0:00:21]} 48. Bb5+ {[%emt 0:01:09]} Kf8 {[%emt 0:00:15]} 49. Nxa8 {[%emt 0:07:51]} Qxa8 {[%emt 0:00:12]} 50. Qh6+ {[%emt 0:00:50]} Kg8 {[%emt 0:00:03]} 51. Bc4 {[%emt 0:00:10]} Qf8 {[%emt 0:07:09]} 52. Qg6+ {[%emt 0:00:39]} Qg7 {[%emt 0:00:15]} 53. Qxg7+ {[%emt 0:00:25]} Kxg7 {[%emt 0:00:02]} 54. b5 {[%emt 0:00:06]} Bd8 {[%emt 0:00:49]} 55. Bd5 {[%emt 0:00:21]} b6 {[%emt 0:01:01]} 56. Kc2 {[%emt 0:00:13]} c4 {[%emt 0:00:58]} 57. Kc3 {[%emt 0:01:57]} Be7 {[%emt 0:00:10]} 58. Bxc4 {[%emt 0:00:18]} Bc5 {[%emt 0:00:13]} 59. Bb3 {[%emt 0:00:21]} Be3 {[%emt 0:00:46]} 60. Kb4 {[%emt 0:00:39]} Bc5+ {[%emt 0:00:14]} 61. Kc4 {[%emt 0:00:01]} Be3 {[%emt 0:00:13]} 62. Kd5 {[%emt 0:00:17]} Bf2 {[%emt 0:00:49]} 63. Kc6 {[%emt 0:00:34]} Be3 {[%emt 0:00:12]} 64. Kd7 {[%emt 0:00:54]} Bf2 {[%emt 0:00:17]} 65. h5 {[%emt 0:00:18]} Be3 {[%emt 0:00:12]} 66. Ke8 {[%emt 0:00:24]} Kh6 {[%emt 0:01:28]} 67. Kxf7 {[%emt 0:00:16]} Bg5 {[%emt 0:00:11]} 68. Bd1 {[%emt 0:00:15]} Bh4 {[%emt 0:00:08]} 69. Ke7 {[%emt 0:01:18]} Bg5 {[%emt 0:00:09]} 1/2-1/2

[Event "Danish Skakligaen 2024-25"]
[Site "Denmark"]
[Date "2024.11.02"]
[Round "1.6"]
[White "Pedersen, Henrik Dahl"]
[Black "Boe, Mads"]
[Result "1/2-1/2"]
[ECO "A85"]
[WhiteElo "2251"]
[BlackElo "2271"]
[Annotator "RC"]
[PlyCount "26"]
[EventDate "2024.11.02"]
[EventType "team-tourn"]
[EventCountry "DEN"]
[SourceTitle "playchess.com"]
[Source "ChessBase"]
[SourceQuality "1"]
[TimeControl "40/5400+30:1800+30"]

1. d4 {[%emt 0:00:04]} f5 {[%emt 0:00:05]} 2. c4 {[%emt 0:00:39]} Nf6 {[%emt 0:00:05]} 3. Nc3 {[%emt 0:00:35]} e6 {[%emt 0:00:04]} 4. Nf3 {[%emt 0:02:40]} Be7 {[%emt 0:06:59]} 5. Bg5 {[%emt 0:03:36]} O-O {[%emt 0:02:30]} 6. e3 {[%emt 0:02:23]} d6 {[%emt 0:01:17]} 7. Be2 {[%emt 0:06:31]} Nc6 {[%emt 0:11:07]} 8. a3 {[%emt 0:08:49]} Qe8 {[%emt 0:04:03]} 9. Qc2 {[%emt 0:05:24]} e5 {[%emt 0:00:56]} 10. Nd5 {[%emt 0:07:36]} e4 {[%emt 0:23:42]} 11. Bxf6 {[%emt 0:05:34]} Bxf6 {[%emt 0:00:46]} 12. Nd2 {[%emt 0:00:29]} Bd8 {[%emt 0:00:16]} 13. h4 {[%emt 0:02:51]} Ne7 {[%emt 0:14:29]} 1/2-1/2

[Event "Danish Skakligaen 2024-25"]
[Site "Denmark"]
[Date "2024.11.02"]
[Round "1.6"]
[White "Andreasen, Joan Hendrik"]
[Black "Liu, Casper"]
[Result "0-1"]
[ECO "A57"]
[WhiteElo "2189"]
[BlackElo "2225"]
[Annotator "RC"]
[PlyCount "52"]
[EventDate "2024.11.02"]
[EventType "team-tourn"]
[EventCountry "DEN"]
[SourceTitle "playchess.com"]
[Source "ChessBase"]
[SourceQuality "1"]
[TimeControl "40/5400+30:1800+30"]

1. d4 {[%emt 0:00:27]} Nf6 {[%emt 0:00:04]} 2. c4 {[%emt 0:00:17]} c5 {[%emt 0:00:05]} 3. d5 {[%emt 0:00:35]} b5 {[%emt 0:00:08]} 4. Qc2 {[%emt 0:03:37]} b4 {[%emt 0:06:06]} 5. e4 {[%emt 0:06:45]} d6 {[%emt 0:00:07]} 6. b3 {[%emt 0:01:53]} g6 {[%emt 0:02:17]} 7. Bb2 {[%emt 0:00:11]} Bg7 {[%emt 0:00:08]} 8. g3 {[%emt 0:05:57]} O-O {[%emt 0:00:28]} 9. Bg2 {[%emt 0:00:15]} a5 {[%emt 0:02:47]} 10. Nd2 {[%emt 0:09:44]} Nbd7 {[%emt 0:00:46]} 11. Ngf3 {[%emt 0:03:14]} a4 {[%emt 0:01:28]} 12. bxa4 {[%emt 0:06:09]} Nb6 {[%emt 0:02:04]} 13. a3 {[%emt 0:05:12]} Nxa4 {[%emt 0:11:31]} 14. axb4 {[%emt 0:02:37]} Bd7 {[%emt 0:00:05]} 15. Rb1 {[%emt 0:06:41]} cxb4 {[%emt 0:02:01]} 16. O-O {[%emt 0:05:18]} Qc7 {[%emt 0:02:30]} 17. Bd4 {[%emt 0:05:36]} Rfb8 {[%emt 0:03:44]} 18. Rfe1 {[%emt 0:06:06]} Nc3 {[%emt 0:11:14]} 19. Rb2 {[%emt 0:00:10]} Ra3 {[%emt 0:00:57]} 20. c5 {[%emt 0:05:15]} Ba4 {[%emt 0:02:50]} 21. Qc1 {[%emt 0:00:16]} Ng4 {[%emt 0:02:29]} 22. Bxg7 {[%emt 0:01:00]} Kxg7 {[%emt 0:01:19]} 23. Nc4 {[%emt 0:03:17]} Qxc5 {[%emt 0:00:44]} 24. Nxa3 {[%emt 0:03:01]} bxa3 {[%emt 0:00:07]} 25. Rc2 {[%emt 0:02:01]} Bxc2 {[%emt 0:00:19]} 26. Qxc2 {[%emt 0:00:06]} Rb2 {[%emt 0:00:06]} 0-1

[Event "Danish Skakligaen 2024-25"]
[Site "Denmark"]
[Date "2024.11.02"]
[Round "1.6"]
[White "Bank Friis, Carsten"]
[Black "Jakobsen, Peter"]
[Result "1-0"]
[ECO "D03"]
[WhiteElo "2163"]
[BlackElo "2215"]
[Annotator "RC"]
[PlyCount "61"]
[EventDate "2024.11.02"]
[EventType "team-tourn"]
[EventCountry "DEN"]
[SourceTitle "playchess.com"]
[Source "ChessBase"]
[SourceQuality "1"]
[TimeControl "40/5400+30:1800+30"]

1. c3 {[%emt 0:00:03]} d5 {[%emt 0:00:24]} 2. d4 {[%emt 0:00:05]} Nf6 {[%emt 0:00:11]} 3. Nf3 {[%emt 0:00:06]} e6 {[%emt 0:02:54]} 4. Bg5 {[%emt 0:00:16]} Be7 {[%emt 0:01:57]} 5. Nbd2 {[%emt 0:00:42]} Nbd7 {[%emt 0:00:16]} 6. e3 {[%emt 0:00:46]} c5 {[%emt 0:00:46]} 7. Bd3 {[%emt 0:00:46]} b6 {[%emt 0:00:16]} 8. O-O {[%emt 0:04:10]} Bb7 {[%emt 0:00:05]} 9. Qe2 {[%emt 0:00:41]} Ne4 {[%emt 0:20:03]} 10. Bxe7 {[%emt 0:01:22]} Qxe7 {[%emt 0:00:06]} 11. Bb5 {[%emt 0:18:31]} Nxd2 {[%emt 0:03:30]} 12. Nxd2 {[%emt 0:02:16]} O-O {[%emt 0:03:01]} 13. Rae1 {[%emt 0:08:00]} Nf6 {[%emt 0:05:28]} 14. f4 {[%emt 0:03:51]} a6 {[%emt 0:01:59]} 15. Bd3 {[%emt 0:00:39]} b5 {[%emt 0:01:05]} 16. dxc5 {[%emt 0:10:15]} Qxc5 {[%emt 0:00:09]} 17. a3 {[%emt 0:00:17]} Rab8 {[%emt 0:11:51]} 18. Nb3 {[%emt 0:04:36]} Qb6 {[%emt 0:00:47]} 19. Nd4 {[%emt 0:00:27]} Rbe8 {[%emt 0:09:48]} 20. Rf3 {[%emt 0:07:02]} Ne4 {[%emt 0:02:06]} 21. Rh3 {[%emt 0:02:00]} g6 {[%emt 0:13:22]} 22. Qg4 {[%emt 0:07:18]} Qd8 {[%emt 0:08:35]} 23. Rh6 {[%emt 0:09:06]} Qf6 {[%emt 0:09:12]} 24. Nf3 {[%emt 0:03:25]} Qg7 {[%emt 0:00:19]} 25. Qh3 {[%emt 0:01:37]} f6 {[%emt 0:00:28]} 26. g4 {[%emt 0:02:32]} Nc5 {[%emt 0:01:15]} 27. Bc2 {[%emt 0:00:56]} e5 {[%emt 0:00:22]} 28. fxe5 {[%emt 0:04:25]} fxe5 {[%emt 0:00:07]} 29. Ng5 {[%emt 0:00:16]} Qf6 {[%emt 0:00:40]} 30. Qh4 {[%emt 0:00:18]} Ne6 {[%emt 0:02:01]} 31. Rxg6+ {[%emt 0:01:28]} 1-0